fUST/lending_fUST_20251103
["ID","MTS","AMOUNT","RATE_DAILY","PERIOD"]
[392917867,1762137050719,-200.0,0.0002951,7]
[392917868,1762137050728,-80732.11475919,0.0002956,2]
[392917869,1762137050739,-208.0,0.00029562,14]
[392917870,1762137050749,-5052.86586949,0.00029595,30]
[392917871,1762137050758,-250.0,0.000296,7]
[392917872,1762137050768,-250.0,0.000296,7]
[392917873,1762137050777,-250.0,0.000296,7]
[392917874,1762137050788,-602.16119796,0.00029665,21]
[392917875,1762137050803,-2060.0,0.00029706,2]
[392917876,1762137050813,-177.347027,0.00029809,31]
[392917877,1762137050823,-1000.0,0.00029866,30]
[392917878,1762137050833,-244.0,0.00029866,30]
[392917879,1762137050843,-384302.27623725,0.0003,20]
[392917880,1762137050853,-21062.10310618,0.0003,2]
[392917881,1762137050862,-675.47595685,0.0003,30]
[392917882,1762137050872,-165.46,0.0003,5]
[392917883,1762137050881,-1007.66554985,0.0003,60]
[392917884,1762137050891,-268.10200002,0.0003,2]
[392917885,1762137050900,-542384.07816772,0.0003,20]
[392917886,1762137050914,-55775.38818332,0.0003,20]
[392917887,1762137050923,-161.07110025,0.0003,2]
[392917888,1762137050933,-2088.61834086,0.0003,2]
[392917889,1762137050944,-2032.51914025,0.0003,2]
[392917890,1762137050953,-13158.2622172,0.0003,2]
[392917891,1762137050963,-14692.90651793,0.0003,2]
[392917892,1762137050973,-4142.54,0.0003,7]
[392917893,1762137050982,-250.0,0.0003,7]
[392917894,1762137050991,-250.0,0.0003,7]
[392917895,1762137051000,-250.0,0.0003,7]
[392917896,1762137051009,-250.0,0.0003,7]
[392917897,1762137051018,-250.0,0.0003,7]
[392917898,1762137051028,-176.4,0.0003,7]
[392917899,1762137051037,-1168.9,0.0003,30]
[392917900,1762137051047,-200.0,0.000301,7]
[392917901,1762137051056,-866.14061157,0.0003013,15]
[392917902,1762137051065,-286.16819641,0.0003013,2]
[392917903,1762137051075,-500.0,0.0003015,10]
[392917904,1762137051084,-1168.9,0.0003018,30]
[392917905,1762137051095,-672.16462426,0.0003022,2]
[392917906,1762137051104,-2160.0,0.00030254,2]
[392917907,1762137051113,-629.27105429,0.00030306,2]
[392917908,1762137051122,-150.0,0.00030331,30]
[392917909,1762137051131,-254.21,0.0003041,14]
[392917910,1762137051140,-7480.83,0.000305,2]
[392917911,1762137051149,-200.0,0.0003051,7]
[392917912,1762137051159,-593.36,0.000306,14]
[392917913,1762137051168,-254.21,0.00030684,15]
[392917914,1762137051177,-47145.42932313,0.0003079,30]
[392917915,1762137051186,-177.347027,0.000308,30]
[392917916,1762137051195,-2341.57917754,0.00030802,2]
[392917917,1762137051203,-177.347027,0.00030917,31]
[392917918,1762137051213,-254.21,0.00030958,16]
[392917919,1762137051223,-2258.0,0.0003098,2]
[392917920,1762137051232,-304.23913116,0.0003099,2]
[392917921,1762137051241,-2024.55188509,0.00031,30]
[392917922,1762137051250,-200.0,0.00031,7]
[392917923,1762137051259,-150.0,0.00031,60]
[392917924,1762137051268,-593.36,0.00031,14]
[392917925,1762137051277,-500.0,0.00031011,7]
[392917926,1762137051286,-25510.59,0.000311,7]
[392917927,1762137051296,-30000.0,0.0003112,2]
[392917928,1762137051305,-203.573298,0.00031205,60]
[392917929,1762137051314,-254.21,0.00031232,17]
[392917930,1762137051324,-177.347027,0.000313,60]
[392917931,1762137051334,-412.0,0.00031381,2]
[392917932,1762137051344,-412.0,0.00031381,2]
[392917933,1762137051355,-4142.54,0.000315,7]
[392917934,1762137051364,-254.21,0.00031506,18]
[392917935,1762137051375,-200.0,0.0003151,7]
[392917936,1762137051385,-500.0,0.00031568,7]
[392917937,1762137051395,-7480.83,0.000316,2]
[392917938,1762137051405,-500.0,0.00031606,7]
[392917939,1762137051415,-177.347027,0.00031664,30]
[392917940,1762137051425,-159.0,0.00031753,48]
[392917941,1762137051434,-150.0,0.00031776,30]
[392917942,1762137051444,-254.21,0.0003178,19]
[392917943,1762137051454,-36751.01018653,0.000319,2]
[392917944,1762137051464,-177.347027,0.000319,35]
[392917945,1762137051473,-500.0,0.00031955,7]
[392917946,1762137051483,-500.0,0.00031984,7]
[392917947,1762137051492,-7123.46417402,0.00032,12]
[392917948,1762137051502,-1000.0,0.00032,14]
[392917949,1762137051511,-177.347027,0.00032026,31]
[392917950,1762137051521,-254.21,0.00032054,20]
[392917951,1762137051530,-177.347027,0.00032098,60]
[392917952,1762137051541,-200.0,0.000321,7]
[392917953,1762137051550,-593.36,0.000323,14]
[392917954,1762137051560,-683.72720322,0.00032306,2]
[392917955,1762137051569,-500.0,0.00032324,7]
[392917956,1762137051578,-254.21,0.00032328,21]
[392917957,1762137051587,-5000.0,0.00032352,2]
[392917958,1762137051596,-200.0,0.000325,2]
[392917959,1762137051605,-25510.59,0.000325,7]
[392917960,1762137051614,-7480.83,0.000325,2]
[392917961,1762137051624,-200.0,0.0003251,7]
[392917962,1762137051633,-177.347027,0.00032529,30]
[392917963,1762137051642,-254.21,0.00032602,22]
[392917964,1762137051652,-177.347027,0.00032609,35]
[392917965,1762137051661,-500.0,0.00032729,7]
[392917966,1762137051670,-500.0,0.00032771,7]
[392917967,1762137051679,-1000.0,0.00032853,30]
[392917968,1762137051689,-492.0,0.00032853,30]
[392917969,1762137051700,-27434.0,0.0003287,7]
[392917970,1762137051710,-254.21,0.00032876,23]
[392917971,1762137051720,-399.34097479,0.00032876,2]
[392917972,1762137051730,-395.05595323,0.00032876,2]
[392917973,1762137051742,-204.57664104,0.00032877,2]
[392917974,1762137051753,-151.0,0.00032877,31]
[392917975,1762137051764,-151.0,0.00032877,31]
[392917976,1762137051773,-151.0,0.00032877,31]
[392917977,1762137051786,-151.0,0.00032877,31]
[392917978,1762137051798,-213.901713,0.00032877,31]
[392917979,1762137051810,-500.0,0.00032877,7]
[392917980,1762137051823,-500.0,0.00032877,7]
[392917981,1762137051834,-500.0,0.00032877,7]
[392917982,1762137051844,-500.0,0.00032877,7]
[392917983,1762137051855,-500.0,0.00032877,7]
[392917984,1762137051867,-479.52106999,0.00032877,7]
[392917985,1762137051878,-500.0,0.00032877,7]
[392917986,1762137051888,-500.0,0.00032877,7]
[392917987,1762137051899,-500.0,0.00032877,7]
[392917988,1762137051909,-500.0,0.00032877,7]
[392917989,1762137051920,-500.0,0.00032877,7]
[392917990,1762137051931,-500.0,0.00032877,7]
[392917991,1762137051941,-500.0,0.00032877,7]
[392917992,1762137051951,-500.0,0.00032877,7]
[392917993,1762137051962,-285.5491633,0.00032877,7]
[392917994,1762137051974,-500.0,0.00032877,7]
[392917995,1762137051985,-500.0,0.00032877,7]
[392917996,1762137051996,-500.0,0.00032877,2]
[392917997,1762137052008,-1060.42408536,0.00032878,120]
[392917998,1762137052019,-177.347027,0.00032897,60]
[392917999,1762137052134,-190.24,0.0003291,7]
[392918000,1762137052145,-500.0,0.00032932,2]
[392918001,1762137052154,-500.0,0.00032987,2]
[392918002,1762137052164,-149.999999,0.00033,2]
[392918003,1762137052174,-500.0,0.00033041,2]
[392918004,1762137052183,-535.44637762,0.00033096,2]
[392918005,1762137052192,-200.0,0.000331,7]
[392918006,1762137052202,-177.347027,0.00033134,31]
[392918007,1762137052211,-254.21,0.0003315,24]
[392918008,1762137052223,-845.514975,0.00033165,2]
[392918009,1762137052233,-271.98930424,0.000332,117]
[392918010,1762137052244,-271.98930424,0.000332,117]
[392918011,1762137052254,-271.98930424,0.000332,117]
[392918012,1762137052263,-150.0,0.0003322,30]
[392918013,1762137052273,-249.93,0.00033253,30]
[392918014,1762137052283,-177.347027,0.00033317,35]
[392918015,1762137052292,-3409.74233653,0.00033342,43]
[392918016,1762137052301,-177.347027,0.00033393,30]
[392918017,1762137052311,-177.00704084,0.000334,120]
[392918018,1762137052320,-198.26107884,0.000334,120]
[392918019,1762137052329,-800.57405708,0.000334,120]
[392918020,1762137052339,-168.34040343,0.000334,120]
[392918021,1762137052349,-833.34142669,0.000334,120]
[392918022,1762137052358,-297.68838848,0.000334,120]
[392918023,1762137052367,-482.78314567,0.000334,120]
[392918024,1762137052376,-1837.03392819,0.000334,120]
[392918025,1762137052386,-366.40484561,0.000334,120]
[392918026,1762137052397,-191.72065913,0.000334,120]
[392918027,1762137052406,-1792.71172921,0.000334,120]
[392918028,1762137052416,-502.32217596,0.000334,120]
[392918029,1762137052427,-173.55266049,0.000334,120]
[392918030,1762137052437,-174.05946599,0.000334,120]
[392918031,1762137052447,-254.21,0.00033424,25]
[392918032,1762137052456,-200.0,0.0003351,7]
[392918033,1762137052466,-153.0,0.00033636,30]
[392918034,1762137052475,-153.0,0.00033636,30]
[392918035,1762137052486,-153.0,0.00033636,30]
[392918036,1762137052495,-154.2766428,0.00033636,30]
[392918037,1762137052504,-177.347027,0.00033695,60]
[392918038,1762137052513,-254.21,0.00033698,26]
[392918039,1762137052523,-3162.0,0.00033788,2]
[392918040,1762137052532,-2834.89818945,0.000338,7]
[392918041,1762137052542,-500.0,0.00033848,7]
[392918042,1762137052551,-172.0,0.00033945,65]
[392918043,1762137052560,-254.21,0.00033972,27]
[392918044,1762137052570,-5069.02156897,0.0003398,2]
[392918045,1762137052579,-242.75805733,0.0003399,60]
[392918046,1762137052588,-200.0,0.00034,120]
[392918047,1762137052597,-593.36,0.00034,30]
[392918048,1762137052606,-177.347027,0.00034026,35]
[392918049,1762137052615,-200.0,0.000341,7]
[392918050,1762137052624,-153.0,0.00034184,30]
[392918051,1762137052633,-273.202136,0.00034184,30]
[392918052,1762137052643,-500.0,0.00034226,7]
[392918053,1762137052652,-254.21,0.00034246,28]
[392918054,1762137052662,-177.347027,0.00034258,30]
[392918055,1762137052675,-10470.75,0.00034275,7]
[392918056,1762137052685,-738.18335214,0.00034306,120]
[392918057,1762137052695,-391.33,0.00034381,2]
[392918058,1762137052704,-412.0,0.00034381,2]
[392918059,1762137052714,-177.00704084,0.000344,120]
[392918060,1762137052723,-198.26107884,0.000344,120]
[392918061,1762137052734,-800.57405708,0.000344,120]
[392918062,1762137052745,-833.34142669,0.000344,120]
[392918063,1762137052755,-297.68838848,0.000344,120]
[392918064,1762137052766,-482.78314567,0.000344,120]
[392918065,1762137052776,-1837.03392819,0.000344,120]
[392918066,1762137052786,-366.40484561,0.000344,120]
[392918067,1762137052796,-191.72065913,0.000344,120]
[392918068,1762137052806,-1792.71172921,0.000344,120]
[392918069,1762137052815,-502.32217596,0.000344,120]
[392918070,1762137052826,-173.55266049,0.000344,120]
[392918071,1762137052836,-174.05946599,0.000344,120]
[392918072,1762137052846,-177.347027,0.00034494,60]
[392918073,1762137052858,-254.21,0.0003452,29]
[392918074,1762137052869,-500.0,0.00034538,7]
[392918075,1762137052880,-156.15,0.00034664,30]
[392918076,1762137052890,-177.347027,0.00034734,35]
[392918077,1762137052899,-254.21,0.00034794,30]
[392918078,1762137052909,-1236.45404705,0.00034849,120]
[392918079,1762137052919,-1621.32,0.00034855,60]
[392918080,1762137052928,-1621.32,0.00034955,60]
[392918081,1762137052937,-156.88,0.00034956,60]
[392918082,1762137052947,-2000.0,0.00034997,15]
[392918083,1762137052957,-622.07,0.00035,14]
[392918084,1762137052966,-19770.71500081,0.00035,7]
[392918097,1762137117419,151.0,0.00037496,60]
[392918098,1762137118031,151.0,0.00037496,60]
[392918099,1762137118639,151.0,0.00037496,60]
[392918100,1762137119568,151.0,0.00037496,60]
[392918101,1762137120422,151.0,0.00037496,60]
[392918102,1762137121034,151.0,0.00037496,60]
[392918103,1762137121675,151.0,0.00037496,60]
[392918104,1762137122286,151.0,0.00037496,60]
[392918105,1762137122961,151.0,0.00037496,60]
[392918106,1762137123634,151.0,0.00037496,60]
[392918108,1762137124261,151.0,0.00037496,60]
[392918109,1762137124872,151.0,0.00037496,60]
[392918110,1762137125518,151.0,0.00037496,60]
[392918111,1762137126152,151.0,0.00037496,60]
[392918112,1762137126821,151.0,0.00037496,60]
[392918115,1762137127432,151.0,0.00037496,60]
[392918116,1762137128042,151.0,0.00037496,60]
[392918117,1762137128701,151.0,0.00037496,60]
[392918118,1762137129315,151.0,0.00037496,60]
[392918120,1762137129927,151.0,0.00037496,60]
[392918122,1762137131600,500.0,0.00037496,60]
[392918128,1762137140851,500.0,0.00037496,21]
[392918131,1762137144632,500.0,0.00037496,60]
[392918146,1762137179203,500.0,0.00037495,60]
[392918147,1762137182674,500.0,0.00037495,60]
[392918149,1762137184719,515.63115421,0.00037495,60]
[392918153,1762137186577,451.28844999,0.00037495,60]
[392918154,1762137191502,500.0,0.00037495,60]
[392918157,1762137194912,500.0,0.00037495,60]
[392918158,1762137195276,500.0,0.00037495,60]
[392918159,1762137195854,564.88751172,0.00037495,60]
[392918161,1762137214201,500.0,0.00037495,60]
[392918162,1762137214427,500.0,0.00037495,60]
[392918163,1762137214668,500.0,0.00037495,60]
[392918164,1762137214891,500.0,0.00037495,60]
[392918165,1762137215150,500.0,0.00037495,60]
[392918166,1762137215391,442.39579769,0.00037495,60]
[392918167,1762137228865,500.0,0.00037495,60]
[392918176,1762137313077,151.0,0.00037495,60]
[392918177,1762137313721,151.0,0.00037495,60]
[392918178,1762137314348,151.0,0.00037495,60]
[392918179,1762137314978,151.0,0.00037495,60]
[392918180,1762137315585,151.0,0.00037495,60]
[392918185,1762137633565,502.31263822,0.00037356,60]
[392918186,1762137635388,510.42225391,0.00037356,60]
[392918187,1762137649438,500.0,0.00037356,60]
[392918188,1762137649671,550.95,0.00037356,60]
[392918189,1762137651807,500.0,0.00037356,60]
[392918207,1762138039117,-229.043,0.00018032,2]
[392918208,1762138039137,-211.69051169,0.00018166,2]
[392918209,1762138039156,-765.0,0.00018299,2]
[392918210,1762138039174,-300.0,0.00018299,2]
[392918211,1762138039192,-1741.179583,0.000183,2]
[392918212,1762138039209,-2555.59973506,0.000183,2]
[392918213,1762138039228,-3098.27481999,0.000183,2]
[392918214,1762138039247,-291.0,0.00018318,2]
[392918215,1762138039267,-500.0,0.00018318,2]
[392918216,1762138039287,-500.0,0.00018318,2]
[392918217,1762138039306,-1200.0,0.00018319,2]
[392918218,1762138039326,-163.43436859,0.00018399,2]
[392918219,1762138039346,-140136.42877567,0.000184,2]
[392918220,1762138039372,-544863.57122433,0.000184,2]
[392918221,1762138039390,-324.28,0.000184,2]
[392918222,1762138039408,-8802.39914434,0.000184,2]
[392918223,1762138039428,-888.3185658,0.0001842,2]
[392918224,1762138039449,-324.28,0.000186,2]
[392918225,1762138039472,-300.0,0.00018767,2]
[392918226,1762138039494,-300.0,0.00018767,2]
[392918227,1762138039517,-300.0,0.00018767,2]
[392918228,1762138039542,-300.0,0.00018767,2]
[392918229,1762138039564,-300.0,0.00018767,2]
[392918230,1762138039586,-300.0,0.00018767,2]
[392918231,1762138039607,-300.0,0.00018767,2]
[392918232,1762138039628,-300.0,0.00018767,2]
[392918233,1762138039650,-300.0,0.00018767,2]
[392918234,1762138039673,-300.0,0.00018767,2]
[392918235,1762138039694,-300.0,0.00018767,2]
[392918236,1762138039714,-300.0,0.00018767,2]
[392918237,1762138039733,-300.0,0.00018767,2]
[392918238,1762138039752,-300.0,0.00018767,2]
[392918239,1762138039772,-300.0,0.00018767,2]
[392918240,1762138039791,-600.0,0.00018767,2]
[392918241,1762138039809,-324.28,0.000188,2]
[392918242,1762138039829,-168.0,0.0001891,2]
[392918243,1762138039847,-324.28,0.00019,2]
[392918244,1762138039973,-324.28,0.000192,2]
[392918245,1762138039993,-324.28,0.000194,2]
[392918246,1762138040013,-324.28,0.000196,2]
[392918247,1762138040032,-324.28,0.000198,2]
[392918248,1762138040050,-420.0,0.0001996,2]
[392918249,1762138040068,-400.0,0.00019982,2]
[392918250,1762138040087,-324.28,0.0002,2]
[392918251,1762138040106,-249.7948038,0.00020166,2]
[392918252,1762138040124,-324.28,0.000202,2]
[392918253,1762138040149,-627.0,0.00020619,2]
[392918254,1762138040167,-2164.0,0.00020619,2]
[392918255,1762138040185,-1003.321,0.00020619,2]
[392918256,1762138040203,-412.0,0.00020619,2]
[392918257,1762138040224,-720.0,0.00020644,2]
[392918258,1762138040244,-888.3185658,0.0002079,2]
[392918259,1762138040262,-193.4759496,0.00021327,2]
[392918260,1762138040280,-587.0,0.00021772,2]
[392918261,1762138040298,-287.8990959,0.00022166,2]
[392918262,1762138040317,-160.0,0.00022215,2]
[392918263,1762138040336,-580.58209003,0.00022215,2]
[392918264,1762138040355,-160.0,0.00022215,2]
[392918265,1762138040373,-404.18480381,0.00022215,2]
[392918266,1762138040392,-155.45,0.000223,14]
[392918267,1762138040410,-1243.55,0.000223,7]
[392918268,1762138040429,-5149.2,0.000223,7]
[392918269,1762138040450,-864.0,0.00022708,20]
[392918270,1762138040469,-1408.035,0.00023157,7]
[392918271,1762138040488,-888.3185658,0.00023161,2]
[392918272,1762138040507,-627.0,0.00023619,2]
[392918273,1762138040529,-2164.0,0.00023619,2]
[392918274,1762138040547,-985.0,0.00023619,2]
[392918275,1762138040567,-412.0,0.00023619,2]
[392918276,1762138040585,-823.0,0.00023749,2]
[392918277,1762138040606,-326.00338801,0.00024166,2]
[392918278,1762138040624,-91933.8973014,0.000248,2]
[392918279,1762138040646,-39400.2417006,0.0002489,2]
[392918280,1762138040665,-94626.34185578,0.000249,2]
[392918283,1762138123762,10000.01,0.000183,2]
[392918284,1762138123784,10000.01,0.000183,2]
[392918285,1762138123805,10000.01,0.000183,2]
[392918286,1762138123827,10000.01,0.000183,2]
[392918287,1762138123849,10000.01,0.000183,2]
[392918288,1762138123870,10000.01,0.000183,2]
[392918289,1762138123891,10000.01,0.000183,2]
[392918290,1762138123912,10000.01,0.000183,2]
[392918291,1762138123934,10000.01,0.000183,2]
[392918292,1762138123955,10000.01,0.000183,2]
[392918293,1762138128362,-10000.01,0.000183,2]
[392918294,1762138128609,-10000.01,0.000183,2]
[392918295,1762138128776,-10000.01,0.000183,2]
[392918296,1762138128897,-10000.01,0.000183,2]
[392918297,1762138129045,-10000.01,0.000183,2]
[392918298,1762138129184,-10000.01,0.000183,2]
[392918299,1762138129344,-10000.01,0.000183,2]
[392918300,1762138129427,-10000.01,0.000183,2]
[392918301,1762138129531,-10000.01,0.000183,2]
[392918302,1762138129637,-10000.01,0.000183,2]
[392918303,1762138134566,-10000.01,0.000183,2]
[392918304,1762138134674,-10000.01,0.000183,2]
[392918305,1762138134790,-10000.01,0.000183,2]
[392918306,1762138134908,-10000.01,0.000183,2]
[392918307,1762138135041,-10000.01,0.000183,2]
[392918308,1762138135204,-10000.01,0.000183,2]
[392918309,1762138135315,-10000.01,0.000183,2]
[392918310,1762138135448,-10000.01,0.000183,2]
[392918311,1762138135576,-10000.01,0.000183,2]
[392918312,1762138135695,-10000.01,0.000183,2]
[392918313,1762138137012,1660.88477435,0.0001801,2]
[392918314,1762138140712,-10000.01,0.000183,2]
[392918315,1762138140829,-10000.01,0.000183,2]
[392918316,1762138140961,-10000.01,0.000183,2]
[392918317,1762138141119,-10000.01,0.000183,2]
[392918318,1762138141224,-10000.01,0.000183,2]
[392918319,1762138141357,-10000.01,0.000183,2]
[392918320,1762138141463,-10000.01,0.000183,2]
[392918321,1762138141574,-10000.01,0.000183,2]
[392918322,1762138141675,-10000.01,0.000183,2]
[392918352,1762138231777,-828.90536412,0.000182,2]
[392918354,1762138231790,-1882.08510338,0.000182,2]
[392918356,1762138231799,-300.0,0.00018299,2]
[392918358,1762138231809,-300.0,0.00018299,2]
[392918360,1762138231817,-300.0,0.00018299,2]
[392918362,1762138231827,-300.0,0.00018299,2]
[392918364,1762138231837,-500.0,0.00018299,2]
[392918366,1762138231846,-242.19708543,0.00018299,2]
[392918368,1762138231855,-587.99212615,0.00018299,2]
[392918370,1762138231864,-500.0,0.00018299,2]
[392918372,1762138231873,-500.0,0.00018299,2]
[392918374,1762138231882,-500.0,0.00018299,2]
[392918376,1762138231891,-500.0,0.00018299,2]
[392918378,1762138231901,-500.0,0.00018299,2]
[392918380,1762138231911,-500.0,0.00018299,2]
[392918382,1762138231920,-500.0,0.00018299,2]
[392918384,1762138231929,-561.16184456,0.00018299,2]
[392918386,1762138231939,-2164.29536915,0.000183,2]
[392918391,1762138231957,-500.0,0.00018299,2]
[392918393,1762138231966,-16138.06055218,0.000183,2]
[392918396,1762138231986,-500.0,0.00018299,2]
[392918398,1762138231995,-500.0,0.00018299,2]
[392918400,1762138232004,-13256.51184885,0.000183,2]
[392918457,1762138237882,-16901.91524331,0.000183,2]
[392918458,1762138237893,-24969.15129631,0.000183,2]
[392918459,1762138237904,-3389.68690587,0.000183,2]
[392918460,1762138237914,-2918.5,0.000183,2]
[392918461,1762138237923,-532.01950484,0.000185,2]
[392918512,1762138238448,-2386.48049516,0.000185,2]
[392918514,1762138238457,-32131.05234678,0.00018665,2]
[392918516,1762138238467,-300.0,0.00018665,2]
[392918518,1762138238477,-300.0,0.00018665,2]
[392918520,1762138238486,-300.0,0.00018665,2]
[392918522,1762138238496,-300.0,0.00018665,2]
[392918524,1762138238507,-300.0,0.00018665,2]
[392918526,1762138238517,-300.0,0.00018665,2]
[392918528,1762138238526,-300.0,0.00018665,2]
[392918530,1762138238536,-300.0,0.00018665,2]
[392918532,1762138238547,-300.0,0.00018665,2]
[392918534,1762138238556,-300.0,0.00018665,2]
[392918536,1762138238568,-300.0,0.00018665,2]
[392918538,1762138238578,-300.0,0.00018665,2]
[392918540,1762138238588,-300.0,0.00018665,2]
[392918542,1762138238598,-300.0,0.00018665,2]
[392918544,1762138238608,-300.0,0.00018665,2]
[392918546,1762138238618,-600.0,0.00018665,2]
[392918548,1762138238626,-2918.5,0.000187,2]
[392918550,1762138238635,-2918.5,0.000189,2]
[392918552,1762138238644,-2918.5,0.000191,2]
[392918554,1762138238654,-2918.5,0.000193,2]
[392918556,1762138238663,-2918.5,0.000195,2]
[392918558,1762138238672,-2918.5,0.000197,2]
[392918559,1762138238681,-2918.5,0.000199,2]
[392918560,1762138238690,-2918.5,0.000201,2]
[392918561,1762138238700,-720.0,0.00020531,2]
[392918562,1762138238709,-224.1898847,0.00021226,2]
[392918563,1762138238719,-160.0,0.00022128,2]
[392918564,1762138238728,-404.18480381,0.00022128,2]
[392918565,1762138238737,-864.0,0.00022585,20]
[392918566,1762138238747,-2914.1263574,0.00024467,2]
[392918567,1762138238757,-1000.0,0.00024843,20]
[392918568,1762138238766,-1119.19,0.000249,7]
[392918569,1762138238775,-500.0,0.00025386,2]
[392918570,1762138238784,-888.3185658,0.00025531,2]
[392918571,1762138238794,-512.14372084,0.0002566,2]
[392918572,1762138238803,-364.10768011,0.00026166,2]
[392918573,1762138238813,-2710.99046745,0.00026229,2]
[392918574,1762138238822,-627.0,0.00026619,2]
[392918575,1762138238832,-2164.0,0.00026619,2]
[392918576,1762138238841,-985.0,0.00026619,2]
[392918577,1762138238851,-157.0,0.00026795,14]
[392918578,1762138238861,-1000.0,0.00027327,30]
[392918579,1762138238870,-244.0,0.00027327,30]
[392918580,1762138238880,-179.67658215,0.00028111,2]
[392918581,1762138238890,-402.21197222,0.00028166,2]
[392918582,1762138238899,-224.1898847,0.0002828,2]
[392918583,1762138238908,-627.0,0.00029619,2]
[392918584,1762138238918,-2164.0,0.00029619,2]
[392918585,1762138238927,-985.0,0.00029619,2]
[392918586,1762138238936,-264.35896738,0.0003,14]
[392918587,1762138238946,-1000.0,0.0003006,30]
[392918588,1762138238955,-492.0,0.0003006,30]
[392918589,1762138238965,-440.31626432,0.00030166,2]
[392918590,1762138238975,-1119.19,0.000302,7]
[392918591,1762138238984,-1948.12790218,0.000304,7]
[392918596,1762138240085,-2613.18,0.000304,7]
[392918640,1762138243586,-72.97209782,0.000304,7]
[392918641,1762138243596,-199.0,0.0003041,14]
[392918642,1762138243606,-199.0,0.00030684,15]
[392918643,1762138243616,-132.54958295,0.000307,6]
[392918672,1762138245902,-132.12103847,0.000307,6]
[392918673,1762138245912,-199.0,0.00030958,16]
[392918674,1762138245921,-3530.27192911,0.00031132,2]
[392918675,1762138245930,-163.0,0.00031178,14]
[392918676,1762138245939,-199.0,0.00031232,17]
[392918677,1762138245948,-502.88878066,0.00031396,7]
[392918678,1762138245958,-199.0,0.00031506,18]
[392918679,1762138245967,-500.0,0.00031512,7]
[392918680,1762138245975,-500.0,0.00031515,7]
[392918681,1762138245985,-199.0,0.0003178,19]
[392918682,1762138245994,-199.0,0.00032054,20]
[392918683,1762138246003,-478.42055643,0.00032166,2]
[392918684,1762138246011,-199.0,0.00032328,21]
[392918685,1762138246020,-500.0,0.00032332,7]
[392918686,1762138246029,-7494.56,0.00032386,10]
[392918687,1762138246038,-500.0,0.00032396,7]
[392918688,1762138246050,-500.0,0.00032517,7]
[392918689,1762138246059,-187.50347763,0.00032602,22]
[392918690,1762138246068,-627.0,0.00032619,2]
[392918691,1762138246077,-2164.0,0.00032619,2]
[392918692,1762138246086,-985.0,0.00032619,2]
[392918693,1762138246096,-1119.19,0.000327,7]
[392918694,1762138246107,-4634.28,0.000327,7]
[392918695,1762138246115,-226.19457406,0.00032877,2]
[392918696,1762138246126,-1000.0,0.00033066,30]
[392918697,1762138246136,-791.0,0.00033066,30]
[392918698,1762138246147,-151.0,0.00033096,2]
[392918699,1762138246156,-151.0,0.00033096,2]
[392918700,1762138246174,-292.02335271,0.00033096,2]
[392918701,1762138246187,-500.0,0.00033096,2]